fUST/lending_fUST_20241204
["ID","MTS","AMOUNT","RATE_DAILY","PERIOD"]
[344127419,1733288849127,170.080352,0.00013973,2]
[344127420,1733288852096,-1952.0460379,0.00028737,2]
[344127421,1733288852117,-2725.473726,0.00029222,2]
[344127422,1733288852138,-2725.473726,0.00029588,2]
[344127423,1733288852158,-226.46650904,0.00029953,2]
[344127480,1733289031831,-109.18288956,0.00029222,2]
[344127506,1733289032071,-63.00968044,0.00029222,2]
[344127508,1733289032080,-2713.4943108,0.000293,2]
[344127510,1733289032091,-150.0,0.00029913,2]
[344127512,1733289032101,-1994.87444558,0.00029953,2]
[344127514,1733289032113,-504.13277138,0.00029953,2]
[344127516,1733289032122,-300.0,0.00029999,2]
[344127518,1733289032131,-300.0,0.00029999,2]
[344127520,1733289032141,-8055.987929,0.0003,30]
[344127522,1733289032150,-151.0,0.00030115,7]
[344127524,1733289032159,-500.0,0.00030135,2]
[344127526,1733289032167,-275.41832332,0.00030135,2]
[344127528,1733289032179,-583.7310609,0.00030135,2]
[344127530,1733289032189,-353.22991539,0.00030135,2]
[344127880,1733289038134,-500.0,0.00030135,2]
[344127882,1733289038143,-538.92629771,0.00030136,2]
[344128370,1733289042913,-8430.65058143,0.00030136,2]
[344128373,1733289042923,-219.28799578,0.00030136,7]
[344128375,1733289042933,-92.69139795,0.00030136,7]
[344128377,1733289042951,-500.0,0.00030136,7]
[344128379,1733289042961,-241.24344555,0.00030136,7]
[344128381,1733289042970,-500.0,0.00030136,7]
[344128384,1733289042980,-500.0,0.00030136,7]
[344128387,1733289042989,-500.0,0.00030136,7]
[344128390,1733289042999,-574.99019199,0.00030136,7]
[344128393,1733289043008,-500.0,0.00030136,7]
[344128396,1733289043018,-195.2953862,0.00030136,7]
[344128399,1733289043027,-500.0,0.00030136,7]
[344128402,1733289043036,-515.0479,0.00030136,7]
[344128405,1733289043045,-459.14165077,0.00030136,7]
[344128407,1733289043055,-500.0,0.00030136,7]
[344128409,1733289043064,-500.0,0.00030136,7]
[344128411,1733289043073,-500.0,0.00030136,7]
[344128412,1733289043083,-179.82684007,0.00030136,7]
[344128415,1733289043095,-320.17315993,0.00030136,7]
[344128417,1733289043105,-500.0,0.00030136,7]
[344128419,1733289043114,-72.64300007,0.00030136,7]
[344129142,1733289311988,-1000.0,0.00030136,120]
[344129143,1733289312017,-1000.0,0.0003041,120]
[344129144,1733289312039,-682.26692326,0.00030684,120]
[344129145,1733289312063,-204.35,0.00031,120]
[344129146,1733289312085,-5133.50967189,0.00031,120]
[344129147,1733289312107,-178.44,0.00031157,120]
[344129148,1733289312128,-150.5,0.00031167,120]
[344129149,1733289312149,-150.5,0.00031182,120]
[344129150,1733289312262,-883.53691273,0.00030136,30]
[344129151,1733289312313,-329.15,0.000303,31]
[344129152,1733289312337,-329.15,0.000303,31]
[344129153,1733289312362,-329.15,0.000303,31]
[344129154,1733289312386,-329.15,0.000303,31]
[344129155,1733289312410,-329.15,0.000303,31]
[344129156,1733289312436,-329.15,0.000303,31]
[344129157,1733289312461,-329.15,0.000303,31]
[344129158,1733289312485,-329.15,0.000303,31]
[344129159,1733289312510,-329.15,0.000303,31]
[344129160,1733289312535,-329.15,0.000303,31]
[344129161,1733289312559,-329.15,0.000303,31]
[344129162,1733289312582,-329.15,0.000303,31]
[344129163,1733289312606,-1378.22392538,0.00030989,34]
[344129164,1733289312753,-934.3771601,0.0003159,120]
[344129165,1733289312775,-4800.26973974,0.0003159,120]
[344129166,1733289312797,-12010.78563911,0.0003159,120]
[344129167,1733289312819,-154.49553888,0.0003159,120]
[344129168,1733289312896,-250.0,0.00031494,30]
[344129169,1733289312975,-300.0,0.00032,120]
[344129170,1733289312996,-1803.88535982,0.00032,120]
[344129171,1733289313112,-300.0,0.00032,120]
[344129172,1733289313235,-150.0,0.00032329,120]
[344129173,1733289313258,-50.0,0.00032876,34]
[344129174,1733289313341,-716.9,0.00031494,30]
[344129175,1733289313420,-450.0,0.00032876,34]
[344129176,1733289313442,-504.8436419,0.00032876,38]
[344129177,1733289313464,-500.0,0.00032877,120]
[344129178,1733289313490,-329.15,0.000329,31]
[344129179,1733289313515,-329.15,0.000329,31]
[344129180,1733289313540,-329.15,0.000329,31]
[344129181,1733289313566,-329.15,0.000329,31]
[344129182,1733289313591,-329.15,0.000329,31]
[344129183,1733289313616,-329.15,0.000329,31]
[344129184,1733289313641,-329.15,0.000329,31]
[344129185,1733289313666,-329.15,0.000329,31]
[344129186,1733289313692,-329.15,0.000329,31]
[344129187,1733289313716,-329.15,0.000329,31]
[344129188,1733289313740,-329.15,0.000329,31]
[344129189,1733289313764,-329.15,0.000329,31]
[344129190,1733289313789,-329.15,0.000329,31]
[344129191,1733289313813,-329.15,0.000329,31]
[344129192,1733289313837,-329.15,0.000329,31]
[344129193,1733289313861,-329.15,0.000329,31]
[344129194,1733289313884,-329.15,0.000329,31]
[344129195,1733289313908,-329.15,0.000329,31]
[344129196,1733289313935,-329.15,0.000329,31]
[344129197,1733289313960,-190.9063581,0.000329,31]
[344129198,1733289314136,-1750.0,0.00031506,30]
[344129199,1733289314156,-1750.0,0.00031506,30]
[344129200,1733289314181,-1750.0,0.00031506,30]
[344129201,1733289314200,-1750.0,0.00031506,30]
[344129202,1733289314222,-1750.0,0.00031506,30]
[344129203,1733289314243,-1750.0,0.00031506,30]
[344129204,1733289314264,-1750.0,0.00031506,30]
[344129205,1733289314284,-1750.0,0.00031506,30]
[344129206,1733289314305,-1750.0,0.00031506,30]
[344129207,1733289314326,-1750.0,0.00031506,30]
[344129208,1733289314346,-1750.0,0.00031506,30]
[344129209,1733289314368,-1750.0,0.00031506,30]
[344129210,1733289314388,-1750.0,0.00031506,30]
[344129211,1733289314410,-1750.0,0.00031506,30]
[344129212,1733289314437,-1750.0,0.00031506,30]
[344129213,1733289314458,-1750.0,0.00031506,30]
[344129214,1733289314478,-1750.0,0.00031506,30]
[344129215,1733289314500,-1750.0,0.00031506,30]
[344129216,1733289314521,-1750.0,0.00031506,30]
[344129217,1733289314543,-1750.0,0.00031506,30]
[344129218,1733289314562,-1750.0,0.00031506,30]
[344129219,1733289314583,-1750.0,0.00031506,30]
[344129220,1733289314603,-1750.0,0.00031506,30]
[344129221,1733289314623,-1750.0,0.00031506,30]
[344129222,1733289314752,-1000.0,0.00033,120]
[344129223,1733289314775,-151.0,0.00033014,120]
[344129224,1733289314798,-500.0,0.00034,120]
[344129225,1733289314824,-151.0,0.00034,120]
[344129226,1733289314846,-1333.0,0.00034849,120]
[344129227,1733289314866,-1264.23510289,0.00035,120]
[344129228,1733289314943,-283.653137,0.00032,30]
[344129229,1733289314967,-500.0,0.00032876,30]
[344129230,1733289314992,-138.2436419,0.000329,31]
[344129231,1733289315017,-329.15,0.000329,31]
[344129232,1733289315041,-329.15,0.000329,31]
[344129233,1733289315065,-329.15,0.000329,31]
[344129234,1733289315089,-329.15,0.000329,31]
[344129235,1733289315110,-500.0,0.00033,30]
[344129236,1733289315131,-521.16992282,0.00033,30]
[344129237,1733289315363,-5813.04975291,0.00035,120]
[344129238,1733289315386,-500.0,0.00035,120]
[344129239,1733289315407,-1000.0,0.00035,120]
[344129240,1733289315500,-1288.0,0.00034,60]
[344129241,1733289315578,-250.0,0.00033,30]
[344129242,1733289315723,-232.549,0.0003599,120]
[344129243,1733289315746,-500.0,0.00036,120]
[344129244,1733289315766,-151.0,0.00036027,120]
[344129245,1733289315787,-116.451,0.0003666,120]
[344129246,1733289316380,764.23510289,0.00035,120]
[344129247,1733289317092,775.969686,0.00034849,120]
[344129248,1733289317391,557.030314,0.00034849,120]
[344129251,1733289384987,274.852598,0.00032,30]
[344129253,1733289411326,210.71,0.000303,31]
[344129254,1733289411380,210.71,0.000303,31]
[344129255,1733289411438,210.71,0.000303,31]
[344129256,1733289411505,210.71,0.000303,31]
[344129257,1733289411567,210.71,0.000303,31]
[344129258,1733289411623,210.71,0.000303,31]
[344129259,1733289411684,210.71,0.000303,31]
[344129260,1733289411742,210.71,0.000303,31]
[344129261,1733289411803,210.71,0.000303,31]
[344129262,1733289411864,210.71,0.000303,31]
[344129263,1733289411928,210.71,0.000303,31]
[344129264,1733289411994,210.71,0.000303,31]
[344129265,1733289412050,210.71,0.000329,31]
[344129266,1733289412104,210.71,0.000329,31]
[344129267,1733289412168,210.71,0.000329,31]
[344129268,1733289412229,210.71,0.000329,31]
[344129269,1733289412302,210.71,0.000329,31]
[344129270,1733289412387,210.71,0.000329,31]
[344129271,1733289412537,210.71,0.000329,31]
[344129272,1733289412603,210.71,0.000329,31]
[344129273,1733289412632,210.71,0.000329,31]
[344129274,1733289412659,210.71,0.000329,31]
[344129275,1733289412714,210.71,0.000329,31]
[344129276,1733289412813,210.71,0.000329,31]
[344129277,1733289412880,210.71,0.000329,31]
[344129278,1733289412948,210.71,0.000329,31]
[344129279,1733289413006,210.71,0.000329,31]
[344129280,1733289413044,210.71,0.000329,31]
[344129281,1733289413084,210.71,0.000329,31]
[344129282,1733289413141,210.71,0.000329,31]
[344129283,1733289413204,210.71,0.000329,31]
[344129284,1733289413264,210.71,0.000329,31]
[344129285,1733289413313,210.71,0.000329,31]
[344129286,1733289413362,210.71,0.000329,31]
[344129287,1733289413438,210.71,0.000329,31]
[344129288,1733289413489,210.71,0.000329,31]
[344129290,1733289532396,1058.5094861,5e-05,14]
[344129292,1733289632914,150.23,0.000303,31]
[344129293,1733289633148,150.23,0.00030574,31]
[344129294,1733289633334,13.58,0.00030848,31]
[344129295,1733289633357,136.65,0.00030848,31]
[344129296,1733289633526,88.497402,0.00031122,31]
[344129297,1733289633548,61.732598,0.00031122,31]
[344129298,1733289633735,188.267402,0.00031396,31]
[344129299,1733289661716,5551.41,0.0002,2]
[344129300,1733289700831,207.0014511,0.00030137,120]
[344129301,1733289737667,170.080352,0.00013973,2]
[344129303,1733289913201,297.8421908,0.00032876,38]
[344129305,1733290022164,153.29,0.000303,31]
[344129306,1733290022220,153.29,0.000303,31]
[344129307,1733290022282,153.29,0.000303,31]
[344129308,1733290022482,153.29,0.000303,31]
[344129309,1733290022528,153.29,0.000303,31]
[344129310,1733290022595,153.29,0.000303,31]
[344129311,1733290022644,153.29,0.000303,31]
[344129312,1733290022702,153.29,0.000303,31]
[344129313,1733290022765,153.29,0.000303,31]
[344129314,1733290023104,153.29,0.000303,31]
[344129315,1733290023146,153.29,0.000303,31]
[344129316,1733290038174,-176.084047,0.00026381,2]
[344129317,1733290038195,-418.1679079,0.00026469,2]
[344129318,1733290038217,-617.0653455,0.00026678,2]
[344129319,1733290038239,-627.6921036,0.00026886,2]
[344129320,1733290038264,-582.3590066,0.00027079,2]
[344129321,1733290038285,-504.6136039,0.0002726,2]
[344129322,1733290038306,-171.2308106,0.0002742,2]
[344129323,1733290038326,-787.2616708,0.00027491,2]
[344129324,1733290038347,-300.0,0.00028383,2]
[344129325,1733290038368,-300.0,0.00028383,2]
[344129326,1733290038389,-400.0,0.00028383,2]
[344129327,1733290038411,-1158.94574182,0.00028384,2]
[344129328,1733290041109,-23741.05425818,0.00028384,2]
[344129329,1733290041136,-2287.56789551,0.00028524,2]
[344129330,1733290041159,-659.968299,0.00029222,2]
[344129331,1733290041183,-179.418145,0.00029222,2]
[344129332,1733290041204,-659.968299,0.00029588,2]
[344129333,1733290041226,-179.418145,0.0002971,2]
[344129334,1733290041247,-151.0,0.00029758,7]
[344129335,1733290041269,-150.0,0.00029921,2]
[344129336,1733290041289,-659.968299,0.00029953,2]
[344129337,1733290041310,-220.0,0.0003,2]
[344129338,1733290041331,-6580.96741676,0.00030001,2]
[344129339,1733290044096,-1738.45852637,0.00030001,2]
[344129340,1733290045137,-64.01894924,0.00030001,2]
[344129341,1733290045159,-346.84477488,0.00030036,2]
[344129342,1733290045183,-2147.26,0.000301,2]
[344129343,1733290045205,-151.0,0.00030115,7]
[344129344,1733290045229,-180.66628087,0.00030117,25]
[344129345,1733290045252,-210.68884711,0.00030135,2]
[344129346,1733290045275,-166.40082386,0.00030135,2]
[344129349,1733290147110,-736.64847436,0.00024,2]
[344129350,1733290147139,-300.0,0.00025999,2]
[344129351,1733290147166,-300.0,0.00025999,2]
[344129352,1733290147190,-10598.08989094,0.00026,3]
[344129374,1733290234467,-2035.07100928,0.00028,2]
[344129375,1733290234532,-1611.431976,0.00028,2]
[344129376,1733290234543,-342.98659259,0.000282,2]
[344129377,1733290234554,-1042.80501495,0.000299,5]
[344129378,1733290234565,-300.0,0.00029999,2]
[344129379,1733290234575,-300.0,0.00029999,2]
[344129380,1733290234585,-6152.99065307,0.0003,2]
[344129430,1733290238145,-1099.63510502,0.0003,2]
[344129432,1733290238168,-911.71863437,0.0003,2]
[344129583,1733290239968,-150.48819083,0.00029875,2]
[344129585,1733290239978,-157.12076917,0.0003,2]
[344129591,1733290240028,-18429.50000002,0.0003,2]
[344129912,1733290243145,-1415.36315384,0.0003,2]
[344129914,1733290243154,-1932.53,0.000301,2]
[344129916,1733290243164,-333.59917614,0.00030135,2]
[344129918,1733290243174,-500.0,0.00030135,2]
[344129920,1733290243184,-500.0,0.00030135,2]
[344129922,1733290243194,-500.0,0.00030135,2]
[344129924,1733290243203,-500.0,0.00030135,2]
[344129925,1733290243212,-500.0,0.00030135,2]
[344129926,1733290243222,-627.53606583,0.00030135,2]
[344129927,1733290243234,-500.0,0.00030135,2]
[344129928,1733290243244,-500.0,0.00030135,2]
[344129929,1733290243253,-500.0,0.00030135,2]
[344129930,1733290243263,-500.0,0.00030135,2]
[344129931,1733290243274,-500.0,0.00030135,2]
[344129932,1733290243283,-500.0,0.00030135,2]
[344129933,1733290243293,-500.0,0.00030135,2]
[344129934,1733290243303,-500.0,0.00030135,2]
[344129935,1733290243327,-500.0,0.00030135,2]
[344129936,1733290243338,-500.0,0.00030135,2]
[344129937,1733290243348,-500.0,0.00030135,2]
[344129938,1733290243358,-500.0,0.00030135,2]
[344129939,1733290243368,-500.0,0.00030135,2]
[344129940,1733290243379,-393.25645895,0.00030135,2]
[344129941,1733290243390,-500.0,0.00030135,2]
[344129942,1733290243400,-500.0,0.00030135,2]
[344129943,1733290243409,-500.0,0.00030135,2]
[344129944,1733290243418,-500.0,0.00030135,2]
[344129945,1733290243429,-500.0,0.00030135,2]
[344129946,1733290243439,-500.0,0.00030135,2]
[344129947,1733290243448,-500.0,0.00030135,2]
[344129948,1733290243458,-500.0,0.00030135,2]
[344129950,1733290243469,-6632.31666239,0.00030135,2]
[344129952,1733290243480,-5907.56776643,0.00030136,2]
[344129954,1733290243492,-427.35699993,0.00030136,7]
[344129956,1733290243503,-500.0,0.00030136,7]
[344129958,1733290243514,-500.0,0.00030136,7]
[344129960,1733290243524,-500.0,0.00030136,7]
[344129962,1733290243536,-166.98145011,0.00030136,7]
[344129964,1733290243546,-500.0,0.00030136,7]
[344129966,1733290243556,-500.0,0.00030136,7]
[344129968,1733290243566,-531.74102938,0.00030136,7]
[344129970,1733290243577,-500.0,0.00030136,7]
[344129972,1733290243587,-248.1908303,0.00030136,7]
[344129974,1733290243597,-526.27438934,0.00030136,7]
[344129976,1733290243607,-505.07990665,0.00030136,7]
[344129979,1733290243617,-500.0,0.00030136,7]
[344129981,1733290243629,-500.0,0.00030136,7]
[344129983,1733290243639,-500.0,0.00030136,7]
[344129985,1733290243649,-500.0,0.00030136,7]
[344129987,1733290243660,-500.0,0.00030136,7]
[344129989,1733290243670,-500.0,0.00030136,7]
[344129991,1733290243680,-500.0,0.00030136,7]
[344129993,1733290243689,-500.0,0.00030136,7]
[344129995,1733290243699,-500.0,0.00030136,7]
[344129997,1733290243709,-500.0,0.00030136,7]
[344129999,1733290243722,-500.0,0.00030136,7]
[344130001,1733290243731,-500.0,0.00030136,7]
[344130003,1733290243742,-500.0,0.00030136,7]
[344130005,1733290243752,-500.0,0.00030136,7]
[344130007,1733290243762,-500.0,0.00030136,7]
[344130009,1733290243772,-506.19281381,0.00030136,7]
[344130011,1733290243782,-548.49558623,0.00030136,7]
[344130013,1733290243792,-504.30940248,0.00030136,7]
[344130015,1733290243804,-500.0,0.00030136,7]
[344130017,1733290243814,-500.0,0.00030136,7]
[344130019,1733290243823,-526.07808646,0.00030136,7]
[344130021,1733290243833,-509.32368685,0.00030136,7]
[344130023,1733290243843,-514.24688423,0.00030136,7]
[344130025,1733290243854,-500.0,0.00030136,7]
[344130027,1733290243864,-500.0,0.00030136,7]
[344130030,1733290243877,-557.32059361,0.00030136,7]
[344130032,1733290243887,-416.88566955,0.00030136,7]
[344130190,1733290245461,-84.38695115,0.00030136,7]
[344130192,1733290245471,-501.36156982,0.00030136,7]
[344130194,1733290245481,-404.3205381,0.00030136,7]
[344130196,1733290245490,-500.0,0.00030136,7]
[344130198,1733290245500,-500.0,0.00030136,7]
[344130199,1733290245510,-500.0,0.00030136,7]
[344130201,1733290245520,-500.0,0.00030136,7]
[344130203,1733290245530,-500.0,0.00030136,7]
[344130205,1733290245540,-500.0,0.00030136,7]
[344130208,1733290245551,-500.0,0.00030136,7]
[344130209,1733290245562,-500.0,0.00030136,7]
[344130212,1733290245574,-500.0,0.00030136,7]
[344130213,1733290245584,-500.0,0.00030136,7]
[344130215,1733290245594,-500.0,0.00030136,7]
[344130217,1733290245605,-398.08,0.00030136,7]
[344130219,1733290245615,-500.0,0.00030136,7]
[344130221,1733290245624,-500.0,0.00030136,7]
[344130223,1733290245636,-500.0,0.00030136,7]
[344130225,1733290245645,-500.0,0.00030136,7]
[344130228,1733290245656,-500.0,0.00030136,7]
[344130229,1733290245666,-500.0,0.00030136,7]
[344130231,1733290245676,-500.0,0.00030136,7]
[344130233,1733290245686,-500.0,0.00030136,7]
[344130237,1733290245705,-500.0,0.00030136,7]
[344130239,1733290245715,-500.0,0.00030136,7]
[344130241,1733290245725,-500.0,0.00030136,7]
[344130243,1733290245735,-500.0,0.00030136,7]
[344130245,1733290245745,-500.0,0.00030136,7]
[344130247,1733290245755,-500.0,0.00030136,7]
[344130249,1733290245765,-500.0,0.00030136,7]
[344130251,1733290245775,-500.0,0.00030136,7]
[344130253,1733290245785,-500.0,0.00030136,7]
[344130255,1733290245795,-500.0,0.00030136,7]
[344130257,1733290245805,-373.83658762,0.00030136,7]
[344130259,1733290245817,-500.0,0.00030136,7]
[344130261,1733290245827,-500.0,0.00030136,7]
[344130263,1733290245836,-500.0,0.00030136,7]
[344130265,1733290245846,-495.42194383,0.00030136,7]
[344130267,1733290245856,-500.0,0.00030136,7]
[344130269,1733290245866,-600.3,0.00030136,7]
[344130271,1733290245875,-500.0,0.00030136,7]
[344130273,1733290245885,-500.0,0.00030136,7]
[344130275,1733290245895,-500.0,0.00030136,7]
[344130277,1733290245904,-500.0,0.00030136,7]
[344130279,1733290245915,-525.01811366,0.00030136,7]
[344130280,1733290245925,-500.0,0.00030136,7]
[344130281,1733290245935,-500.0,0.00030136,7]
[344130282,1733290245946,-500.0,0.00030136,7]
[344130283,1733290245956,-500.0,0.00030136,7]
[344130284,1733290245966,-500.0,0.00030136,7]
[344130285,1733290245976,-500.0,0.00030136,7]
[344130286,1733290245987,-500.0,0.00030136,7]
[344130287,1733290245996,-500.0,0.00030136,7]
[344130288,1733290246006,-500.0,0.00030136,7]
[344130290,1733290246016,-225.53417941,0.00030136,7]
[344130292,1733290246025,-500.0,0.00030136,7]
[344130294,1733290246035,-500.0,0.00030136,7]
[344130296,1733290246044,-415.81693364,0.00030136,7]
[344130299,1733290246054,-500.0,0.00030136,7]
[344130301,1733290246063,-500.0,0.00030136,7]
[344130303,1733290246073,-500.0,0.00030136,7]
[344130305,1733290246082,-500.0,0.00030136,7]
[344130307,1733290246092,-500.0,0.00030136,7]
[344130309,1733290246102,-500.0,0.00030136,7]
[344130311,1733290246111,-553.48,0.00030136,7]
[344130313,1733290246121,-581.31,0.00030136,7]
[344130315,1733290246132,-581.31,0.00030136,7]
[344130317,1733290246142,-581.31,0.00030136,7]
[344130319,1733290246151,-581.31,0.00030136,7]
[344130321,1733290246161,-581.31,0.00030136,7]
[344130323,1733290246170,-519.90887483,0.00030136,7]
[344130325,1733290246179,-581.31,0.00030136,7]
[344130327,1733290246189,-581.31,0.00030136,7]
[344130329,1733290246198,-581.31,0.00030136,7]
[344130331,1733290246207,-581.31,0.00030136,7]
[344130333,1733290246216,-581.31,0.00030136,7]
[344130335,1733290246226,-581.31,0.00030136,7]
[344130337,1733290246238,-581.31,0.00030136,7]
[344130339,1733290246247,-581.31,0.00030136,7]
[344130341,1733290246257,-500.0,0.00030136,7]
[344130343,1733290246267,-500.0,0.00030136,7]
[344130345,1733290246276,-500.0,0.00030136,7]
[344130347,1733290246286,-500.0,0.00030136,7]
[344130349,1733290246296,-500.0,0.00030136,7]
[344130351,1733290246306,-512.96338437,0.00030136,7]
[344130353,1733290246315,-500.0,0.00030136,7]
[344130355,1733290246325,-500.0,0.00030136,7]
[344130357,1733290246334,-500.0,0.00030136,7]
[344130359,1733290246344,-500.0,0.00030136,7]
[344130361,1733290246353,-500.0,0.00030136,7]
[344130363,1733290246362,-500.0,0.00030136,7]
[344130365,1733290246372,-500.0,0.00030136,7]
[344130367,1733290246383,-500.0,0.00030136,7]
[344130369,1733290246392,-500.0,0.00030136,7]
[344130371,1733290246402,-500.0,0.00030136,7]
[344130373,1733290246411,-500.0,0.00030136,7]
[344130375,1733290246420,-500.0,0.00030136,7]
[344130378,1733290246430,-195.1316121,0.00030136,7]
[344130380,1733290246440,-537.39728594,0.00030136,7]
[344130381,1733290246450,-500.0,0.00030136,7]
[344130383,1733290246459,-500.0,0.00030136,7]
[344130386,1733290246469,-500.0,0.00030136,7]
[344130388,1733290246478,-500.0,0.00030136,7]
[344130390,1733290246488,-500.0,0.00030136,7]
[344130392,1733290246498,-500.0,0.00030136,7]
[344130394,1733290246507,-179.52741671,0.00030136,7]
[344130396,1733290246517,-500.0,0.00030136,7]
[344130398,1733290246526,-500.0,0.00030136,7]
[344130400,1733290246536,-664.31,0.00030136,7]
[344130402,1733290246545,-664.31,0.00030136,7]
[344130404,1733290246554,-664.31,0.00030136,7]
[344130406,1733290246564,-664.31,0.00030136,7]
[344130408,1733290246573,-664.31,0.00030136,7]
[344130410,1733290246582,-500.0,0.00030136,7]
[344130412,1733290246592,-578.92814195,0.00030136,7]
[344130414,1733290246602,-500.0,0.00030136,7]
[344130416,1733290246611,-448.40627516,0.00030136,7]
[344130418,1733290246620,-500.0,0.00030136,7]
[344130420,1733290246631,-506.53730171,0.00030136,7]
[344130422,1733290246641,-500.0,0.00030136,7]
[344130424,1733290246650,-500.0,0.00030136,7]
[344130426,1733290246659,-327.06940053,0.00030136,7]
[344130428,1733290246669,-500.0,0.00030136,7]
[344130430,1733290246679,-500.0,0.00030136,7]
[344130432,1733290246687,-500.0,0.00030136,7]
[344130434,1733290246697,-500.0,0.00030136,7]
[344130436,1733290246706,-507.01044074,0.00030136,7]
[344130438,1733290246716,-506.21022921,0.00030136,7]
[344130440,1733290246726,-620.32272934,0.00030136,7]
[344130442,1733290246735,-500.0,0.00030136,7]
[344130444,1733290246744,-500.0,0.00030136,7]
[344130446,1733290246754,-513.50144634,0.00030136,7]
[344130449,1733290246763,-580.04849012,0.00030136,7]
[344130451,1733290246773,-500.0,0.00030136,7]
[344130453,1733290246782,-373.57307772,0.00030136,7]
[344130455,1733290246791,-500.0,0.00030136,7]
[344130457,1733290246801,-500.0,0.00030136,7]
[344130459,1733290246810,-500.0,0.00030136,7]
[344130461,1733290246819,-500.0,0.00030136,7]
[344130463,1733290246828,-500.0,0.00030136,7]
[344130465,1733290246837,-500.0,0.00030136,7]
[344130467,1733290246847,-500.0,0.00030136,7]
[344130469,1733290246857,-500.0,0.00030136,7]
[344130471,1733290246867,-534.74,0.00030136,7]
[344130473,1733290246878,-510.72150462,0.00030136,7]
[344130475,1733290246887,-500.0,0.00030136,7]
[344130477,1733290246897,-500.0,0.00030136,7]
[344130479,1733290246906,-500.0,0.00030136,7]
[344130481,1733290246915,-500.0,0.00030136,7]
[344130483,1733290246925,-500.0,0.00030136,7]
[344130485,1733290246934,-362.60614072,0.00030136,7]
[344130487,1733290246944,-500.0,0.00030136,7]
[344130489,1733290246954,-500.0,0.00030136,7]
[344130491,1733290246964,-500.0,0.00030136,7]
[344130493,1733290246973,-500.0,0.00030136,7]
[344130495,1733290246983,-500.0,0.00030136,7]
[344130497,1733290246992,-500.0,0.00030136,7]
[344130499,1733290247001,-309.23163343,0.00030136,7]
[344130501,1733290247010,-508.50090885,0.00030136,7]
[344130503,1733290247020,-507.29821097,0.00030136,7]
[344130505,1733290247028,-500.0,0.00030136,7]
[344130506,1733290247038,-500.0,0.00030136,7]
[344130509,1733290247047,-506.88959005,0.00030136,7]
[344130511,1733290247057,-500.0,0.00030136,7]
[344130513,1733290247067,-500.0,0.00030136,7]
[344130514,1733290247077,-500.0,0.00030136,7]
[344130517,1733290247086,-500.0,0.00030136,7]
[344130518,1733290247096,-500.0,0.00030136,7]
[344130520,1733290247106,-500.0,0.00030136,7]
[344130523,1733290247116,-500.0,0.00030136,7]
[344130525,1733290247127,-598.93,0.00030136,7]
[344130527,1733290247137,-500.0,0.00030136,7]